[Event "Titled Tuesday Blitz November 15 Late 2022"]
[White "Gokerkan, Cem Kaan"]
[Black "Guzman, Christopher"]
[WhiteFideId "6336760"]
[BlackFideId "6405096"]
[WhiteElo "2365"]
[BlackElo "2272"]
[Result "1/2-1/2"]
[Round "02"]
[TimeControl "180+1"]
[Date "2022.11.16"]
[WhiteClock "0:00:35"]
[BlackClock "0:01:53"]

1. e4 {[%clk 0:03:00]}  c6 {[%clk 0:02:59]} 2. d4 {[%clk 0:03:00]}  d5 {[%clk 0:03:00]} 3. e5 {[%clk 0:03:00]}  Bf5 {[%clk 0:03:00]} 4. h4 {[%clk 0:03:01]}  h5 {[%clk 0:03:00]} 5. c4 {[%clk 0:03:01]}  e6 {[%clk 0:03:00]} 6. Nc3 {[%clk 0:03:02]}  Nd7 {[%clk 0:03:00]} 7. cxd5 {[%clk 0:03:01]}  cxd5 {[%clk 0:02:54]} 8. Bd3 {[%clk 0:03:01]}  Bxd3 {[%clk 0:02:54]} 9. Qxd3 {[%clk 0:03:02]}  Nh6 {[%clk 0:02:52]} 10. Bxh6 {[%clk 0:02:59]}  Rxh6 {[%clk 0:02:52]} 11. Nf3 {[%clk 0:03:00]}  Be7 {[%clk 0:02:51]} 12. g3 {[%clk 0:03:00]}  Rc8 {[%clk 0:02:49]} 13. O-O {[%clk 0:02:51]}  g5 {[%clk 0:02:48]} 14. Qe3 {[%clk 0:02:37]}  Rg6 {[%clk 0:02:47]} 15. hxg5 {[%clk 0:02:37]}  Bxg5 {[%clk 0:02:47]} 16. Nxg5 {[%clk 0:02:37]}  Qxg5 {[%clk 0:02:43]} 17. Qxg5 {[%clk 0:02:36]}  Rxg5 {[%clk 0:02:44]} 18. Rac1 {[%clk 0:02:21]}  a6 {[%clk 0:02:40]} 19. Ne2 {[%clk 0:02:16]}  Rxc1 {[%clk 0:02:40]} 20. Rxc1 {[%clk 0:02:17]}  Kd8 {[%clk 0:02:39]} 21. Kg2 {[%clk 0:02:15]}  h4 {[%clk 0:02:37]} 22. f4 {[%clk 0:01:55]}  Rg8 {[%clk 0:02:35]} 23. Kf3 {[%clk 0:01:42]}  hxg3 {[%clk 0:02:33]} 24. Nxg3 {[%clk 0:01:42]}  Nb8 {[%clk 0:02:31]} 25. Rh1 {[%clk 0:01:33]}  Nc6 {[%clk 0:02:29]} 26. Ne2 {[%clk 0:01:34]}  Ke7 {[%clk 0:02:25]} 27. Rh5 {[%clk 0:01:28]}  Nb4 {[%clk 0:02:22]} 28. a3 {[%clk 0:01:22]}  Nc6 {[%clk 0:02:13]} 29. f5 {[%clk 0:01:19]}  exf5 {[%clk 0:02:00]} 30. Rxf5 {[%clk 0:01:19]}  Rh8 {[%clk 0:02:00]} 31. Ke3 {[%clk 0:01:08]}  Rh3+ {[%clk 0:01:59]} 32. Kd2 {[%clk 0:01:08]}  Rh4 {[%clk 0:01:57]} 33. Ke3 {[%clk 0:00:46]}  Rh3+ {[%clk 0:01:56]} 34. Rf3 {[%clk 0:00:46]}  Rxf3+ {[%clk 0:01:53]} 35. Kxf3 {[%clk 0:00:47]}  f6 {[%clk 0:01:54]} 36. exf6+ {[%clk 0:00:35]}  Kxf6 {[%clk 0:01:53]} 37. Ke3 {[%clk 0:00:36]}  Ke6 {[%clk 0:01:53]} 38. Nf4+ {[%clk 0:00:36]}  Kd6 {[%clk 0:01:53]} 39. Kd3 {[%clk 0:00:35]} 1/2-1/2


[Site "https://www.chess.com"]

[Event "Titled Tuesday Blitz November 15 Late 2022"]
[White "Goroshkov, Maksym"]
[Black "Jacobson, Brandon"]
[WhiteFideId "14142716"]
[BlackFideId "30901561"]
[WhiteElo "2257"]
[BlackElo "2451"]
[Result "0-1"]
[Round "02"]
[TimeControl "180+1"]
[Date "2022.11.15"]
[WhiteClock "0:02:27"]
[BlackClock "0:02:09"]

1. e4 {[%clk 0:03:00]}  c5 {[%clk 0:02:59]} 2. d4 {[%clk 0:03:00]}  cxd4 {[%clk 0:03:00]} 3. c3 {[%clk 0:03:01]}  dxc3 {[%clk 0:03:01]} 4. Nxc3 {[%clk 0:03:02]}  Nc6 {[%clk 0:03:01]} 5. Nf3 {[%clk 0:03:02]}  d6 {[%clk 0:03:02]} 6. Bc4 {[%clk 0:03:02]}  a6 {[%clk 0:03:03]} 7. O-O {[%clk 0:03:00]}  Nf6 {[%clk 0:03:04]} 8. Bg5 {[%clk 0:02:59]}  e6 {[%clk 0:02:54]} 9. Qe2 {[%clk 0:02:55]}  Be7 {[%clk 0:02:49]} 10. Rfd1 {[%clk 0:02:55]}  Qa5 {[%clk 0:02:42]} 11. Bxf6 {[%clk 0:02:53]}  Bxf6 {[%clk 0:02:39]} 12. Rxd6 {[%clk 0:02:51]}  O-O {[%clk 0:02:34]} 13. Rxc6 {[%clk 0:02:50]}  bxc6 {[%clk 0:02:30]} 14. e5 {[%clk 0:02:51]}  Be7 {[%clk 0:02:29]} 15. Qe4 {[%clk 0:02:47]}  Rb8 {[%clk 0:02:21]} 16. Bb3 {[%clk 0:02:34]}  Rxb3 {[%clk 0:02:20]} 17. Rd1 {[%clk 0:02:29]}  Rxb2 {[%clk 0:02:18]} 18. Ne2 {[%clk 0:02:29]}  Rd8 {[%clk 0:02:11]} 19. Rf1 {[%clk 0:02:28]}  Qd5 {[%clk 0:02:10]} 20. Qg4 {[%clk 0:02:27]}  Rxe2 {[%clk 0:02:09]} 0-1


[Site "https://www.chess.com"]

[Event "Titled Tuesday Blitz November 15 Late 2022"]
[White "Grot, Blazej"]
[Black "Kobo, Ori"]
[WhiteFideId "21835845"]
[BlackFideId "2812320"]
[WhiteElo "1822"]
[BlackElo "2447"]
[Result "0-1"]
[Round "02"]
[TimeControl "180+1"]
[Date "2022.11.16"]
[WhiteClock "0:00:02"]
[BlackClock "0:00:13"]

1. e4 {[%clk 0:03:00]}  c5 {[%clk 0:03:00]} 2. Nc3 {[%clk 0:02:59]}  Nc6 {[%clk 0:02:59]} 3. Bb5 {[%clk 0:02:59]}  Nd4 {[%clk 0:02:59]} 4. Nf3 {[%clk 0:02:59]}  a6 {[%clk 0:02:57]} 5. Bc4 {[%clk 0:02:59]}  b5 {[%clk 0:02:55]} 6. Bd5 {[%clk 0:02:59]}  Rb8 {[%clk 0:02:55]} 7. Nxd4 {[%clk 0:02:59]}  cxd4 {[%clk 0:02:56]} 8. Ne2 {[%clk 0:03:00]}  e6 {[%clk 0:02:50]} 9. Bb3 {[%clk 0:02:59]}  Nf6 {[%clk 0:02:51]} 10. d3 {[%clk 0:02:58]}  Bc5 {[%clk 0:02:41]} 11. O-O {[%clk 0:02:57]}  h6 {[%clk 0:02:25]} 12. f4 {[%clk 0:02:57]}  d6 {[%clk 0:02:23]} 13. f5 {[%clk 0:02:55]}  exf5 {[%clk 0:02:18]} 14. exf5 {[%clk 0:02:55]}  O-O {[%clk 0:02:15]} 15. Ng3 {[%clk 0:02:36]}  Bb7 {[%clk 0:02:04]} 16. Nh5 {[%clk 0:02:20]}  Re8 {[%clk 0:02:02]} 17. Nxf6+ {[%clk 0:00:52]}  Qxf6 {[%clk 0:02:03]} 18. Qh5 {[%clk 0:00:52]}  Re5 {[%clk 0:01:46]} 19. Bd2 {[%clk 0:00:42]}  Rbe8 {[%clk 0:01:32]} 20. Rae1 {[%clk 0:00:39]}  Kf8 {[%clk 0:01:23]} 21. Rxe5 {[%clk 0:00:25]}  Rxe5 {[%clk 0:01:14]} 22. Bf4 {[%clk 0:00:25]}  Re7 {[%clk 0:01:01]} 23. Bg3 {[%clk 0:00:24]}  Qg5 {[%clk 0:00:48]} 24. Qxg5 {[%clk 0:00:20]}  hxg5 {[%clk 0:00:49]} 25. Re1 {[%clk 0:00:19]}  Bc8 {[%clk 0:00:34]} 26. f6 {[%clk 0:00:05]}  gxf6 {[%clk 0:00:31]} 27. Rxe7 {[%clk 0:00:05]}  Kxe7 {[%clk 0:00:31]} 28. Kf2 {[%clk 0:00:06]}  f5 {[%clk 0:00:30]} 29. Ke2 {[%clk 0:00:01]}  Bb7 {[%clk 0:00:29]} 30. Kf1 {[%clk 0:00:02]}  f4 {[%clk 0:00:28]} 31. Bf2 {[%clk 0:00:03]}  Bc6 {[%clk 0:00:22]} 32. a3 {[%clk 0:00:03]}  a5 {[%clk 0:00:21]} 33. Ba2 {[%clk 0:00:02]}  a4 {[%clk 0:00:19]} 34. Be1 {[%clk 0:00:02]}  f5 {[%clk 0:00:18]} 35. Ba5 {[%clk 0:00:02]}  Kf6 {[%clk 0:00:18]} 36. Kf2 {[%clk 0:00:03]}  g4 {[%clk 0:00:18]} 37. Bd8+ {[%clk 0:00:03]}  Kg6 {[%clk 0:00:18]} 38. g3 {[%clk 0:00:03]}  f3 {[%clk 0:00:18]} 39. Be6 {[%clk 0:00:02]}  b4 {[%clk 0:00:17]} 40. axb4 {[%clk 0:00:02]}  Bxb4 {[%clk 0:00:18]} 41. Be7 {[%clk 0:00:02]}  Be8 {[%clk 0:00:12]} 42. Bc4 {[%clk 0:00:02]}  a3 {[%clk 0:00:12]} 43. bxa3 {[%clk 0:00:02]}  Bxa3 {[%clk 0:00:13]} 44. Bd8 {[%clk 0:00:02]}  Bc1 {[%clk 0:00:12]} 45. Bb6 {[%clk 0:00:02]}  Be3+ {[%clk 0:00:13]} 46. Kf1 {[%clk 0:00:03]}  Ba4 {[%clk 0:00:12]} 47. Bb3 {[%clk 0:00:03]}  Bc6 {[%clk 0:00:12]} 48. Ba7 {[%clk 0:00:01]}  Kf6 {[%clk 0:00:12]} 49. Bb8 {[%clk 0:00:02]}  Ke5 {[%clk 0:00:12]} 50. Bc4 {[%clk 0:00:02]}  f4 {[%clk 0:00:13]} 51. gxf4+ {[%clk 0:00:03]}  Bxf4 {[%clk 0:00:14]} 52. Bb3 {[%clk 0:00:02]}  Bxh2 {[%clk 0:00:13]} 53. Kf2 {[%clk 0:00:02]}  g3+ {[%clk 0:00:13]} 54. Ke1 {[%clk 0:00:02]}  g2 {[%clk 0:00:13]} 0-1


[Site "https://www.chess.com"]

[Event "Titled Tuesday Blitz November 15 Late 2022"]
[White "Hajiyev, Kanan"]
[Black "Allahverdiyeva, Ayan"]
[WhiteFideId "13404148"]
[BlackFideId "13412590"]
[WhiteElo "2118"]
[BlackElo "2021"]
[Result "0-1"]
[Round "02"]
[TimeControl "180+1"]
[Date "2022.11.16"]
[WhiteClock "0:01:30"]
[BlackClock "0:01:32"]

1. d4 {[%clk 0:03:00]}  Nf6 {[%clk 0:02:59]} 2. Nf3 {[%clk 0:02:46]}  e6 {[%clk 0:02:59]} 3. c4 {[%clk 0:02:46]}  b6 {[%clk 0:02:59]} 4. g3 {[%clk 0:02:46]}  Ba6 {[%clk 0:02:58]} 5. Qc2 {[%clk 0:02:46]}  c5 {[%clk 0:02:56]} 6. dxc5 {[%clk 0:02:45]}  Bxc5 {[%clk 0:02:56]} 7. Bg2 {[%clk 0:02:46]}  Bb7 {[%clk 0:02:55]} 8. O-O {[%clk 0:02:46]}  O-O {[%clk 0:02:54]} 9. a3 {[%clk 0:02:47]}  a5 {[%clk 0:02:54]} 10. Nc3 {[%clk 0:02:44]}  Nc6 {[%clk 0:02:52]} 11. Bg5 {[%clk 0:02:42]}  h6 {[%clk 0:02:51]} 12. Bxf6 {[%clk 0:02:43]}  Qxf6 {[%clk 0:02:51]} 13. Ne4 {[%clk 0:02:44]}  Qe7 {[%clk 0:02:50]} 14. Nxc5 {[%clk 0:02:44]}  Qxc5 {[%clk 0:02:50]} 15. Rfd1 {[%clk 0:02:44]}  d5 {[%clk 0:02:49]} 16. Rac1 {[%clk 0:02:44]}  d4 {[%clk 0:02:47]} 17. Qe4 {[%clk 0:02:25]}  e5 {[%clk 0:02:43]} 18. Nxe5 {[%clk 0:02:20]}  Rfe8 {[%clk 0:02:20]} 19. f4 {[%clk 0:02:10]}  Nxe5 {[%clk 0:01:48]} 20. Qxb7 {[%clk 0:02:07]}  d3+ {[%clk 0:01:44]} 21. e3 {[%clk 0:01:40]}  Qxe3+ {[%clk 0:01:44]} 22. Kh1 {[%clk 0:01:39]}  Ng4 {[%clk 0:01:43]} 23. Qf3 {[%clk 0:01:33]}  Nf2+ {[%clk 0:01:41]} 24. Kg1 {[%clk 0:01:33]}  Nxd1+ {[%clk 0:01:33]} 25. Qxe3 {[%clk 0:01:33]}  Nxe3 {[%clk 0:01:34]} 26. Bxa8 {[%clk 0:01:33]}  d2 {[%clk 0:01:33]} 27. Rb1 {[%clk 0:01:30]}  Rxa8 {[%clk 0:01:32]} 0-1


[Site "https://www.chess.com"]

[Event "Titled Tuesday Blitz November 15 Late 2022"]
[White "Hambleton, Aman"]
[Black "Curtis, John"]
[WhiteFideId "2606577"]
[BlackFideId "3200256"]
[WhiteElo "2538"]
[BlackElo "2203"]
[Result "1-0"]
[Round "02"]
[TimeControl "180+1"]
[Date "2022.11.16"]
[WhiteClock "0:00:04"]
[BlackClock "0:00:02"]

1. d4 {[%clk 0:03:00]}  Nf6 {[%clk 0:02:57]} 2. Bf4 {[%clk 0:03:00]}  d6 {[%clk 0:02:56]} 3. Nc3 {[%clk 0:02:59]}  Nbd7 {[%clk 0:02:47]} 4. Nf3 {[%clk 0:02:56]}  g6 {[%clk 0:02:47]} 5. e4 {[%clk 0:02:56]}  Bg7 {[%clk 0:02:46]} 6. Qd2 {[%clk 0:02:54]}  Nh5 {[%clk 0:02:39]} 7. Bh6 {[%clk 0:02:52]}  c5 {[%clk 0:01:46]} 8. Bxg7 {[%clk 0:02:11]}  Nxg7 {[%clk 0:01:45]} 9. O-O-O {[%clk 0:02:12]}  cxd4 {[%clk 0:01:39]} 10. Nxd4 {[%clk 0:02:05]}  h6 {[%clk 0:01:24]} 11. Bc4 {[%clk 0:01:45]}  a6 {[%clk 0:01:08]} 12. Kb1 {[%clk 0:01:40]}  b5 {[%clk 0:00:56]} 13. Bd5 {[%clk 0:01:23]}  Rb8 {[%clk 0:00:37]} 14. Nc6 {[%clk 0:01:19]}  Qc7 {[%clk 0:00:32]} 15. Nxb8 {[%clk 0:01:07]}  Qxb8 {[%clk 0:00:27]} 16. e5 {[%clk 0:00:45]}  Nxe5 {[%clk 0:00:22]} 17. f4 {[%clk 0:00:45]}  Nd7 {[%clk 0:00:22]} 18. Rhe1 {[%clk 0:00:45]}  Kf8 {[%clk 0:00:11]} 19. Qd4 {[%clk 0:00:24]}  Nf6 {[%clk 0:00:10]} 20. Bb3 {[%clk 0:00:14]}  Nf5 {[%clk 0:00:08]} 21. Qg1 {[%clk 0:00:13]}  h5 {[%clk 0:00:07]} 22. g3 {[%clk 0:00:09]}  a5 {[%clk 0:00:08]} 23. a3 {[%clk 0:00:07]}  b4 {[%clk 0:00:08]} 24. axb4 {[%clk 0:00:07]}  axb4 {[%clk 0:00:08]} 25. Nd5 {[%clk 0:00:05]}  Nxd5 {[%clk 0:00:06]} 26. Bxd5 {[%clk 0:00:06]}  e6 {[%clk 0:00:06]} 27. Be4 {[%clk 0:00:04]}  Ne7 {[%clk 0:00:05]} 28. Qd4 {[%clk 0:00:04]}  Rg8 {[%clk 0:00:04]} 29. Qxd6 {[%clk 0:00:04]}  Qxd6 {[%clk 0:00:03]} 30. Rxd6 {[%clk 0:00:05]}  Ba6 {[%clk 0:00:04]} 31. Rxa6 {[%clk 0:00:05]}  Kg7 {[%clk 0:00:03]} 32. Ra7 {[%clk 0:00:05]}  Rd8 {[%clk 0:00:03]} 33. Rxe7 {[%clk 0:00:05]}  Rd2 {[%clk 0:00:04]} 34. h4 {[%clk 0:00:04]}  Rh2 {[%clk 0:00:04]} 35. Rb7 {[%clk 0:00:02]}  Kf6 {[%clk 0:00:05]} 36. Rxb4 {[%clk 0:00:03]}  Rh3 {[%clk 0:00:05]} 37. Rb3 {[%clk 0:00:03]}  Ke7 {[%clk 0:00:03]} 38. Bg2 {[%clk 0:00:02]}  Rh2 {[%clk 0:00:04]} 39. Rg1 {[%clk 0:00:03]}  f6 {[%clk 0:00:02]} 40. Re3 {[%clk 0:00:03]}  g5 {[%clk 0:00:02]} 41. fxg5 {[%clk 0:00:04]}  f5 {[%clk 0:00:02]} 42. b4 {[%clk 0:00:04]}  f4 {[%clk 0:00:02]} 43. Re4 {[%clk 0:00:04]} 1-0


[Site "https://www.chess.com"]

[Event "Titled Tuesday Blitz November 15 Late 2022"]
[White "Hansen, Eric"]
[Black "Garcia Ramos, Daniel"]
[WhiteFideId "2606771"]
[BlackFideId "32010311"]
[WhiteElo "2568"]
[BlackElo "2357"]
[Result "1-0"]
[Round "02"]
[TimeControl "180+1"]
[Date "2022.11.15"]
[WhiteClock "0:00:06"]
[BlackClock "0:00:06"]

1. Nf3 {[%clk 0:03:00]}  d5 {[%clk 0:02:59]} 2. g3 {[%clk 0:03:01]}  e6 {[%clk 0:03:00]} 3. Bg2 {[%clk 0:03:02]}  b6 {[%clk 0:03:00]} 4. O-O {[%clk 0:03:02]}  Bb7 {[%clk 0:03:01]} 5. d4 {[%clk 0:02:59]}  Nf6 {[%clk 0:03:01]} 6. c4 {[%clk 0:02:59]}  dxc4 {[%clk 0:03:00]} 7. Qa4+ {[%clk 0:02:56]}  Nbd7 {[%clk 0:03:00]} 8. Rd1 {[%clk 0:02:56]}  a6 {[%clk 0:02:59]} 9. Qxc4 {[%clk 0:02:55]}  b5 {[%clk 0:03:00]} 10. Qc2 {[%clk 0:02:56]}  c5 {[%clk 0:02:59]} 11. dxc5 {[%clk 0:02:56]}  Bxc5 {[%clk 0:02:59]} 12. Nc3 {[%clk 0:02:53]}  Qb6 {[%clk 0:02:59]} 13. e3 {[%clk 0:02:48]}  O-O {[%clk 0:02:56]} 14. b3 {[%clk 0:02:43]}  Rac8 {[%clk 0:02:55]} 15. Bb2 {[%clk 0:02:44]}  Rfd8 {[%clk 0:02:48]} 16. Qe2 {[%clk 0:02:41]}  Bc6 {[%clk 0:02:43]} 17. Ne1 {[%clk 0:02:36]}  Ne5 {[%clk 0:02:28]} 18. Na4 {[%clk 0:02:29]}  bxa4 {[%clk 0:02:27]} 19. Bxe5 {[%clk 0:02:30]}  axb3 {[%clk 0:02:23]} 20. Rxd8+ {[%clk 0:02:30]}  Rxd8 {[%clk 0:02:22]} 21. Bxc6 {[%clk 0:02:24]}  Qxc6 {[%clk 0:02:15]} 22. Bxf6 {[%clk 0:02:22]}  gxf6 {[%clk 0:02:12]} 23. axb3 {[%clk 0:02:23]}  Qb5 {[%clk 0:02:06]} 24. Qc2 {[%clk 0:02:12]}  Bb4 {[%clk 0:01:53]} 25. Nf3 {[%clk 0:02:10]}  a5 {[%clk 0:01:46]} 26. Nd4 {[%clk 0:02:05]}  Qe5 {[%clk 0:01:39]} 27. Rc1 {[%clk 0:02:04]}  Qd5 {[%clk 0:01:34]} 28. Qc7 {[%clk 0:01:54]}  Rd7 {[%clk 0:01:26]} 29. Qb8+ {[%clk 0:01:43]}  Rd8 {[%clk 0:01:26]} 30. Qf4 {[%clk 0:01:42]}  Kg7 {[%clk 0:01:16]} 31. Rc7 {[%clk 0:01:19]}  h5 {[%clk 0:01:09]} 32. Rc4 {[%clk 0:00:44]}  Bd6 {[%clk 0:00:55]} 33. Qf3 {[%clk 0:00:39]}  Qxf3 {[%clk 0:00:53]} 34. Nxf3 {[%clk 0:00:40]}  Rb8 {[%clk 0:00:53]} 35. Rc3 {[%clk 0:00:40]}  Be5 {[%clk 0:00:50]} 36. Rd3 {[%clk 0:00:39]}  Kf8 {[%clk 0:00:48]} 37. Nd2 {[%clk 0:00:38]}  Ke7 {[%clk 0:00:47]} 38. Nc4 {[%clk 0:00:36]}  Rb5 {[%clk 0:00:46]} 39. h4 {[%clk 0:00:34]}  f5 {[%clk 0:00:42]} 40. Kg2 {[%clk 0:00:32]}  Kf6 {[%clk 0:00:40]} 41. Kf3 {[%clk 0:00:31]}  Bb8 {[%clk 0:00:35]} 42. Ke2 {[%clk 0:00:28]}  Ke7 {[%clk 0:00:32]} 43. Kd1 {[%clk 0:00:28]}  e5 {[%clk 0:00:29]} 44. Kc2 {[%clk 0:00:28]}  e4 {[%clk 0:00:25]} 45. Rd4 {[%clk 0:00:26]}  Be5 {[%clk 0:00:24]} 46. Rd1 {[%clk 0:00:25]}  Bc7 {[%clk 0:00:22]} 47. Ra1 {[%clk 0:00:23]}  Rc5 {[%clk 0:00:21]} 48. Ra4 {[%clk 0:00:23]}  Ke6 {[%clk 0:00:19]} 49. Kc3 {[%clk 0:00:21]}  Kd5 {[%clk 0:00:19]} 50. Kd2 {[%clk 0:00:18]}  Rb5 {[%clk 0:00:18]} 51. Kc2 {[%clk 0:00:17]}  Rc5 {[%clk 0:00:14]} 52. Ra1 {[%clk 0:00:17]}  Kc6 {[%clk 0:00:12]} 53. Kd2 {[%clk 0:00:13]}  Kb5 {[%clk 0:00:12]} 54. Ra4 {[%clk 0:00:10]}  Bd8 {[%clk 0:00:10]} 55. Na3+ {[%clk 0:00:10]}  Kc6 {[%clk 0:00:10]} 56. Nc2 {[%clk 0:00:10]}  Bc7 {[%clk 0:00:11]} 57. Nd4+ {[%clk 0:00:10]}  Kb6 {[%clk 0:00:10]} 58. Rc4 {[%clk 0:00:06]}  Rxc4 {[%clk 0:00:08]} 59. bxc4 {[%clk 0:00:07]}  Kc5 {[%clk 0:00:09]} 60. Nxf5 {[%clk 0:00:07]}  Kxc4 {[%clk 0:00:08]} 61. Kc2 {[%clk 0:00:07]}  a4 {[%clk 0:00:09]} 62. Kb1 {[%clk 0:00:04]}  Kd3 {[%clk 0:00:08]} 63. Nh6 {[%clk 0:00:01]}  Ke2 {[%clk 0:00:07]} 64. g4 {[%clk 0:00:01]}  hxg4 {[%clk 0:00:06]} 65. Nxg4 {[%clk 0:00:02]}  Kf3 {[%clk 0:00:05]} 66. Nh6 {[%clk 0:00:02]}  f6 {[%clk 0:00:05]} 67. h5 {[%clk 0:00:02]}  Kxf2 {[%clk 0:00:03]} 68. Nf5 {[%clk 0:00:03]}  Bf4 {[%clk 0:00:01]} 69. exf4 {[%clk 0:00:03]}  e3 {[%clk 0:00:02]} 70. Nxe3 {[%clk 0:00:03]}  Kxe3 {[%clk 0:00:03]} 71. h6 {[%clk 0:00:04]}  Kxf4 {[%clk 0:00:04]} 72. h7 {[%clk 0:00:04]}  f5 {[%clk 0:00:05]} 73. h8=Q {[%clk 0:00:05]}  Ke3 {[%clk 0:00:06]} 74. Qe5+ {[%clk 0:00:06]} 1-0


[Site "https://www.chess.com"]

[Event "Titled Tuesday Blitz November 15 Late 2022"]
[White "Harish, Neeraj"]
[Black "Zhalmakhanov, Ramazan"]
[WhiteFideId "30958130"]
[BlackFideId "13706357"]
[WhiteElo "1815"]
[BlackElo "2405"]
[Result "1/2-1/2"]
[Round "02"]
[TimeControl "180+1"]
[Date "2022.11.16"]
[WhiteClock "0:00:40"]
[BlackClock "0:00:12"]

1. e4 {[%clk 0:03:00]}  d5 {[%clk 0:02:59]} 2. exd5 {[%clk 0:03:00]}  Nf6 {[%clk 0:02:57]} 3. Bb5+ {[%clk 0:03:00]}  Nbd7 {[%clk 0:02:57]} 4. c4 {[%clk 0:02:58]}  g6 {[%clk 0:02:57]} 5. Nf3 {[%clk 0:02:58]}  Bg7 {[%clk 0:02:57]} 6. O-O {[%clk 0:02:58]}  O-O {[%clk 0:02:58]} 7. Nc3 {[%clk 0:02:58]}  Nb6 {[%clk 0:02:58]} 8. d4 {[%clk 0:02:56]}  a6 {[%clk 0:02:57]} 9. Ba4 {[%clk 0:02:56]}  Nxc4 {[%clk 0:02:58]} 10. Bb3 {[%clk 0:02:56]}  Nb6 {[%clk 0:02:56]} 11. Bf4 {[%clk 0:02:54]}  Nbxd5 {[%clk 0:02:53]} 12. Nxd5 {[%clk 0:02:53]}  Nxd5 {[%clk 0:02:54]} 13. Be5 {[%clk 0:02:52]}  Bg4 {[%clk 0:02:47]} 14. h3 {[%clk 0:02:46]}  Bxf3 {[%clk 0:02:45]} 15. Qxf3 {[%clk 0:02:46]}  c6 {[%clk 0:02:46]} 16. Rfe1 {[%clk 0:02:42]}  e6 {[%clk 0:02:44]} 17. Rac1 {[%clk 0:02:26]}  Ne7 {[%clk 0:02:33]} 18. Rcd1 {[%clk 0:02:20]}  Nf5 {[%clk 0:02:30]} 19. g4 {[%clk 0:02:16]}  Ne7 {[%clk 0:02:28]} 20. Kg2 {[%clk 0:02:11]}  Nd5 {[%clk 0:02:25]} 21. Qe4 {[%clk 0:01:51]}  Nf6 {[%clk 0:02:16]} 22. Qf3 {[%clk 0:01:50]}  Nd7 {[%clk 0:02:13]} 23. Bd6 {[%clk 0:01:44]}  Re8 {[%clk 0:02:14]} 24. Bg3 {[%clk 0:01:39]}  a5 {[%clk 0:02:08]} 25. a4 {[%clk 0:01:37]}  Qb6 {[%clk 0:02:07]} 26. Qd3 {[%clk 0:01:02]}  Qb4 {[%clk 0:02:03]} 27. Qc3 {[%clk 0:00:57]}  Nb6 {[%clk 0:01:54]} 28. Be5 {[%clk 0:00:53]}  Nxa4 {[%clk 0:01:44]} 29. Bxa4 {[%clk 0:00:51]}  Qxa4 {[%clk 0:01:45]} 30. Bxg7 {[%clk 0:00:51]}  Kxg7 {[%clk 0:01:40]} 31. d5+ {[%clk 0:00:51]}  Kg8 {[%clk 0:01:36]} 32. dxe6 {[%clk 0:00:46]}  Rxe6 {[%clk 0:00:40]} 33. Rxe6 {[%clk 0:00:43]}  fxe6 {[%clk 0:00:41]} 34. Rd7 {[%clk 0:00:42]}  Qe4+ {[%clk 0:00:29]} 35. f3 {[%clk 0:00:41]}  Qe2+ {[%clk 0:00:28]} 36. Kg3 {[%clk 0:00:40]}  e5 {[%clk 0:00:25]} 37. Qb3+ {[%clk 0:00:40]}  Kh8 {[%clk 0:00:25]} 38. Qf7 {[%clk 0:00:40]}  Qe1+ {[%clk 0:00:23]} 39. Kg2 {[%clk 0:00:40]}  Qe2+ {[%clk 0:00:23]} 40. Kg3 {[%clk 0:00:39]}  Qe1+ {[%clk 0:00:23]} 41. Kg2 {[%clk 0:00:40]}  Qe2+ {[%clk 0:00:12]} 42. Kg3 {[%clk 0:00:40]} 1/2-1/2


[Site "https://www.chess.com"]

[Event "Titled Tuesday Blitz November 15 Late 2022"]
[White "Indjic, Aleksandar"]
[Black "Danielyan, Vahe"]
[WhiteFideId "911925"]
[BlackFideId "13304828"]
[WhiteElo "2592"]
[BlackElo "2423"]
[Result "1-0"]
[Round "02"]
[TimeControl "180+1"]
[Date "2022.11.15"]
[WhiteClock "0:00:39"]
[BlackClock "0:00:13"]

1. d4 {[%clk 0:03:00]}  g6 {[%clk 0:02:59]} 2. c4 {[%clk 0:02:59]}  Bg7 {[%clk 0:02:59]} 3. e4 {[%clk 0:02:59]}  d6 {[%clk 0:02:59]} 4. Nc3 {[%clk 0:02:58]}  Nd7 {[%clk 0:02:59]} 5. Be3 {[%clk 0:02:55]}  e5 {[%clk 0:03:00]} 6. Nge2 {[%clk 0:02:53]}  Ne7 {[%clk 0:02:59]} 7. h4 {[%clk 0:02:53]}  h5 {[%clk 0:02:58]} 8. Qd2 {[%clk 0:02:51]}  a5 {[%clk 0:02:54]} 9. O-O-O {[%clk 0:02:50]}  b6 {[%clk 0:02:53]} 10. f3 {[%clk 0:02:42]}  Bb7 {[%clk 0:02:53]} 11. Kb1 {[%clk 0:02:42]}  a4 {[%clk 0:02:53]} 12. d5 {[%clk 0:02:37]}  a3 {[%clk 0:02:53]} 13. b4 {[%clk 0:02:31]}  f5 {[%clk 0:02:38]} 14. Bg5 {[%clk 0:02:22]}  Nf6 {[%clk 0:02:33]} 15. Nc1 {[%clk 0:02:06]}  Qd7 {[%clk 0:02:29]} 16. Nb3 {[%clk 0:02:05]}  f4 {[%clk 0:02:20]} 17. c5 {[%clk 0:02:03]}  Qd8 {[%clk 0:02:03]} 18. Bb5+ {[%clk 0:02:01]}  Kf7 {[%clk 0:02:03]} 19. g3 {[%clk 0:01:53]}  fxg3 {[%clk 0:02:00]} 20. Rdg1 {[%clk 0:01:52]}  Nh7 {[%clk 0:02:00]} 21. Be3 {[%clk 0:01:49]}  bxc5 {[%clk 0:02:00]} 22. bxc5 {[%clk 0:01:48]}  Ba6 {[%clk 0:02:00]} 23. Bxa6 {[%clk 0:01:47]}  Rxa6 {[%clk 0:02:00]} 24. Rxg3 {[%clk 0:01:47]}  Bf6 {[%clk 0:01:52]} 25. Kc2 {[%clk 0:01:42]}  Ra8 {[%clk 0:01:51]} 26. c6 {[%clk 0:01:41]}  Rb8 {[%clk 0:01:49]} 27. Qg2 {[%clk 0:01:38]}  Rg8 {[%clk 0:01:47]} 28. Bg5 {[%clk 0:01:29]}  Nxg5 {[%clk 0:01:45]} 29. hxg5 {[%clk 0:01:30]}  Bg7 {[%clk 0:01:45]} 30. Rf1 {[%clk 0:01:29]}  Ke8 {[%clk 0:01:45]} 31. Qh3 {[%clk 0:01:28]}  Qc8 {[%clk 0:01:36]} 32. Qxc8+ {[%clk 0:01:28]}  Nxc8 {[%clk 0:01:37]} 33. Nb1 {[%clk 0:01:26]}  Na7 {[%clk 0:01:35]} 34. Nxa3 {[%clk 0:01:25]}  Rf8 {[%clk 0:01:35]} 35. Rh3 {[%clk 0:01:20]}  Rf4 {[%clk 0:01:31]} 36. Nc4 {[%clk 0:01:19]}  Nb5 {[%clk 0:01:26]} 37. a4 {[%clk 0:01:19]}  Nd4+ {[%clk 0:01:24]} 38. Nxd4 {[%clk 0:01:19]}  exd4 {[%clk 0:01:25]} 39. Nb2 {[%clk 0:01:19]}  Ke7 {[%clk 0:01:15]} 40. Nd3 {[%clk 0:01:19]}  Rff8 {[%clk 0:01:15]} 41. f4 {[%clk 0:01:15]}  Ra8 {[%clk 0:01:01]} 42. Ra1 {[%clk 0:01:14]}  Ra7 {[%clk 0:00:59]} 43. Rhh1 {[%clk 0:01:06]}  Rfa8 {[%clk 0:00:56]} 44. f5 {[%clk 0:01:06]}  Be5 {[%clk 0:00:39]} 45. fxg6 {[%clk 0:01:05]}  Rh8 {[%clk 0:00:24]} 46. Rhf1 {[%clk 0:00:57]}  h4 {[%clk 0:00:24]} 47. Rf7+ {[%clk 0:00:57]}  Ke8 {[%clk 0:00:24]} 48. Raf1 {[%clk 0:00:54]}  Ra8 {[%clk 0:00:12]} 49. Nxe5 {[%clk 0:00:53]}  dxe5 {[%clk 0:00:13]} 50. g7 {[%clk 0:00:53]}  Rg8 {[%clk 0:00:13]} 51. Rxc7 {[%clk 0:00:49]}  h3 {[%clk 0:00:13]} 52. d6 {[%clk 0:00:41]}  h2 {[%clk 0:00:12]} 53. Re7+ {[%clk 0:00:41]}  Kd8 {[%clk 0:00:13]} 54. Rf8+ {[%clk 0:00:39]} 1-0


[Site "https://www.chess.com"]